bitfinex-derivatives/quotes_ETHF0:USTF0_20241023
["timestamp","ask_amount","ask_price","bid_price","bid_amount"]
[1729692148939,10.72643318,2579.9,2579.7,41.18788]
[1729692148940,10.33857318,2579.9,2579.7,41.18788]
[1729692149068,0.5631,2579.8,2579.7,41.18788]
[1729692149667,0.95097,2579.8,2579.7,40.8]
[1729692149870,5.26902365,2579.8,2579.7,40.8]
[1729692150167,5.26902365,2579.8,2579.6,0.38789]
[1729692150168,0.38789,2579.7,2579.6,0.38789]
[1729692150378,0.38793,2579.5,2579.4,0.38793]
[1729692150677,0.38793,2579.5,2579.3,0.5722]
[1729692150678,4.49374595,2579.5,2579.3,0.5722]
[1729692150869,0.38793,2579.4,2579.3,0.38794]
[1729692151065,4.86548577,2579.6,2579.5,0.38792]
[1729692151365,0.5364,2579.6,2579.5,0.38792]
[1729692151568,4.86548577,2579.6,2579.5,0.38792]
[1729692151974,4.32908577,2579.6,2579.5,0.38792]
[1729692152176,3.2078,2579.9,2579.8,0.38787]
[1729692152473,6.2278,2579.9,2579.8,0.38787]
[1729692152983,6.61566,2579.9,2579.8,0.38787]
[1729692153271,10.1038,2579.9,2579.6,0.5787]
[1729692153474,3.02,2579.7,2579.6,0.96659]
[1729692153673,3.40789,2579.7,2579.5,0.38791]
[1729692153864,3.40789,2579.7,2579.5,0.38792]
[1729692153865,3.5799,2579.6,2579.5,0.38792]
[1729692154066,0.5599,2579.6,2579.5,0.38792]
[1729692154667,3.9678,2579.6,2579.5,0.38792]
[1729692154869,3.5799,2579.6,2579.5,0.38792]
[1729692155070,0.5599,2579.6,2579.5,0.38792]
[1729692156271,0.5599,2579.6,2579.4,0.92653]
[1729692156471,0.93282,2579.5,2579.4,0.92653]
[1729692156673,0.93282,2579.5,2579.3,0.96014]
[1729692156674,0.5449,2579.5,2579.3,0.96014]
[1729692156877,0.5449,2579.5,2579.3,0.38794]
[1729692156878,0.38793,2579.4,2579.3,0.38794]
[1729692157071,0.38796,2579.3,2579.2,0.38796]
[1729692157366,0.38796,2579.3,2579.1,0.587]
[1729692157367,0.38796,2579.2,2579.1,0.587]
[1729692157574,0.38796,2579.2,2579.1,0.97498]
[1729692157575,0.96296,2579.2,2579.1,0.97498]
[1729692158071,0.96296,2579.2,2579.0,0.38799]
[1729692158072,0.38798,2579.1,2579.0,0.38799]
[1729692158266,3.595,2579.2,2579.1,0.38798]
[1729692158267,5.0940275,2579.2,2579.1,0.38798]
[1729692158459,0.575,2579.2,2579.1,0.38798]
[1729692158655,7.7260575,2579.2,2578.9,0.5499]
[1729692158955,7.7260575,2579.2,2578.7,41.387]
[1729692158956,0.38801,2578.9,2578.8,0.38801]
[1729692159357,0.38802,2578.8,2578.7,0.97503]
[1729692159660,7.63634669,2578.8,2578.7,0.38804]
[1729692160052,7.24831669,2578.8,2578.7,0.38804]
[1729692160641,7.63633669,2578.8,2578.7,0.38804]
[1729692161040,7.24831669,2578.8,2578.7,0.38804]
[1729692161445,4.22831669,2578.8,2578.7,0.38804]
[1729692163239,0.57,2578.9,2578.6,41.39]
[1729692163547,3.2078,2579.0,2578.9,0.38801]
[1729692163853,3.561,2579.4,2579.3,0.38795]
[1729692164248,7.99736452,2579.4,2579.3,0.38795]
[1729692164444,8.38529452,2579.4,2579.3,0.38795]
[1729692164749,7.99736452,2579.4,2579.3,0.38795]
[1729692165146,3.2078,2579.5,2579.1,2.71704]
[1729692165343,3.2078,2579.5,2579.4,0.38793]
[1729692166147,6.2278,2579.8,2579.1,4.9549]
[1729692166347,6.2278,2579.8,2579.7,0.38789]
[1729692166543,6.61568,2579.8,2579.7,0.38789]
[1729692166748,6.2278,2579.8,2579.7,0.38789]
[1729692167152,3.2078,2579.8,2579.7,0.38789]
[1729692168250,6.2278,2579.8,2579.7,0.38789]
[1729692169641,6.2278,2579.8,2579.4,4.17764]
[1729692169947,7.85786287,2579.8,2579.7,0.38789]
[1729692170147,7.85786287,2579.8,2579.6,0.38789]
[1729692170148,0.38789,2579.7,2579.6,0.38789]
[1729692170348,7.46999287,2579.8,2579.7,0.38789]
[1729692170656,7.52598395,2579.8,2579.7,0.38789]
[1729692170847,10.54598395,2579.8,2579.7,0.38789]
[1729692171046,10.93385395,2579.8,2579.7,0.38789]
[1729692172152,7.33818395,2579.8,2579.7,0.38789]
[1729692172660,7.72605395,2579.8,2579.7,0.38789]
[1729692173056,0.38792,2579.5,2579.4,0.38793]
[1729692173251,3.02,2579.5,2579.4,0.38793]
[1729692173456,7.28068996,2579.5,2579.4,0.38793]
[1729692173757,7.66860996,2579.5,2579.4,0.38793]
[1729692173948,0.38794,2579.4,2579.3,0.38794]
[1729692174152,0.38795,2579.3,2579.2,0.38796]
[1729692174449,4.12011757,2579.3,2579.0,1.35798]
[1729692174655,4.50806757,2579.3,2579.2,0.38796]
[1729692175658,4.12011757,2579.3,2579.2,0.38796]
[1729692175863,4.50806757,2579.3,2579.2,0.38796]
[1729692176757,7.52807757,2579.3,2579.2,0.38796]
[1729692177056,7.14011757,2579.3,2578.6,40.8]
[1729692177264,3.408,2579.0,2578.9,0.388]
[1729692177762,0.38802,2578.9,2578.8,0.38802]
[1729692177965,0.95932,2578.9,2578.8,0.38802]
[1729692178162,0.5713,2578.9,2578.6,42.32434]
[1729692178383,0.5713,2578.9,2578.4,0.0322]
[1729692178384,0.38807,2578.5,2578.4,0.0322]
[1729692178666,0.38807,2578.5,2578.1,0.5757]
[1729692178667,3.02,2578.2,2578.1,0.38813]
[1729692178856,3.02,2578.2,2578.1,41.18813]
[1729692179254,3.02,2578.2,2578.1,0.38813]
[1729692179656,3.02,2578.2,2577.9,0.5757]
[1729692179865,6.2278,2578.2,2578.0,40.8]
[1729692180059,6.2278,2578.2,2578.0,41.18814]
[1729692180060,0.5529,2578.1,2578.0,41.18814]
[1729692180769,3.2078,2578.2,2578.1,0.38813]
[1729692181661,3.2078,2578.2,2578.1,4.26653]
[1729692182858,6.2278,2578.2,2578.1,41.18813]
[1729692183054,3.2078,2578.2,2578.1,41.18813]
[1729692184165,3.2078,2578.2,2578.1,45.06653]
[1729692184669,0.0126,2578.3,2578.2,0.38811]
[1729692184969,0.0126,2578.3,2578.2,4.26651]
[1729692185168,3.7607,2578.5,2578.4,0.38808]
[1729692186160,3.2078,2578.5,2578.4,4.26648]
[1729692187463,0.0123,2578.6,2578.5,0.38807]
[1729692187767,3.2078,2578.8,2578.7,0.38804]
[1729692187969,3.2078,2578.8,2578.7,4.26564]
[1729692188767,0.38799,2579.1,2579.0,0.38798]
[1729692189065,4.25712941,2579.1,2578.8,0.38802]
[1729692189263,4.25712941,2579.1,2578.7,0.38804]
[1729692189264,4.64510941,2579.1,2579.0,0.38799]
[1729692189967,4.64510941,2579.1,2578.5,0.38807]
[1729692189968,4.25712941,2579.1,2578.5,0.38807]
[1729692190171,3.02,2578.8,2578.4,0.5662]
[1729692190473,3.02,2578.6,2578.1,44.9781]
[1729692190667,3.02,2578.6,2578.4,0.38808]
[1729692190668,0.92617,2578.5,2578.4,0.38808]
[1729692190865,0.3881,2578.4,2578.3,0.38809]
[1729692191064,0.38811,2578.3,2578.2,0.38811]
[1729692191868,7.86873271,2578.4,2578.3,0.3881]
[1729692192164,7.86873271,2578.4,2578.2,0.3881]
[1729692192165,0.38811,2578.3,2578.2,0.3881]
[1729692193771,7.86874271,2578.4,2578.3,0.3881]
[1729692194773,4.46064271,2578.4,2578.3,0.3881]
[1729692195269,1.93988,2579.2,2578.3,0.3881]
[1729692195270,3.2078,2578.8,2578.6,0.38805]
[1729692195468,3.2078,2578.8,2578.4,0.97022]
[1729692195469,3.2078,2578.8,2578.7,0.38804]
[1729692195976,3.2078,2578.8,2578.7,4.26564]
[1729692196280,0.5489,2579.2,2579.1,0.38798]
[1729692196573,0.93686,2579.2,2579.1,0.38798]
[1729692196776,0.38799,2579.1,2579.0,0.38799]
[1729692196972,0.38799,2579.1,2578.7,41.77009]
[1729692196973,0.388,2579.0,2578.9,0.388]
[1729692197172,0.38802,2578.8,2578.7,41.18803]
[1729692197473,4.651159,2578.8,2578.7,40.8]
[1729692197679,4.651159,2578.8,2578.7,41.18804]
[1729692197680,7.858959,2578.8,2578.7,41.18804]
[1729692197880,7.858959,2578.8,2578.7,40.8]
[1729692198069,7.858959,2578.8,2578.7,41.18804]
[1729692198471,3.2078,2578.8,2578.7,41.18804]
[1729692198669,3.2078,2578.8,2578.7,0.38804]
[1729692199167,3.2078,2578.8,2578.7,41.18804]
[1729692199575,3.2078,2578.8,2578.7,45.06564]
[1729692200280,3.2078,2578.8,2578.7,41.18804]
[1729692200878,3.2078,2579.1,2578.7,40.8]
[1729692201177,4.06875519,2579.1,2579.0,0.38799]
[1729692201374,0.5414,2579.3,2579.0,0.38799]
[1729692201581,0.5414,2579.3,2579.2,0.38796]
[1729692202180,0.5414,2579.3,2579.1,0.38797]
[1729692202381,0.5414,2579.3,2579.1,0.38798]
[1729692202382,0.38798,2579.2,2579.1,0.38798]
[1729692202575,0.92936,2579.3,2579.2,0.38796]
[1729692202776,0.92936,2579.3,2578.8,0.97006]
[1729692202777,0.5414,2579.3,2578.8,0.97006]
[1729692203079,3.2078,2579.1,2579.0,0.38799]
[1729692205379,3.59578,2579.1,2579.0,0.38799]
[1729692205683,4.14168,2579.1,2579.0,0.38799]
[1729692205882,3.7537,2579.1,2579.0,0.38799]
[1729692206674,3.7537,2579.1,2578.7,42.36309]
[1729692206878,8.18901452,2579.1,2579.0,0.38799]
[1729692207085,7.80102452,2579.1,2578.7,42.36309]
[1729692207283,7.80102452,2579.1,2578.7,41.393]
[1729692207587,7.80102452,2579.1,2578.8,0.38802]
[1729692207588,3.73,2578.9,2578.8,0.38802]
[1729692207788,0.388,2579.0,2578.9,0.38801]
[1729692208179,4.48198911,2579.0,2578.9,0.38801]
[1729692208585,4.48197911,2579.0,2578.9,0.38801]
[1729692208783,4.09398911,2579.0,2578.9,0.38801]
[1729692210384,3.7537,2579.1,2579.0,0.38799]
[1729692210788,4.14168,2579.1,2579.0,0.38799]
[1729692210984,3.7537,2579.1,2579.0,0.38799]
[1729692211189,4.14168,2579.1,2579.0,0.38799]
[1729692211588,0.388,2579.0,2578.9,0.388]
[1729692211788,7.98733908,2579.1,2578.7,41.77009]
[1729692211988,7.98733908,2579.1,2579.0,0.38799]
[1729692212484,8.37531908,2579.1,2579.0,0.38799]
[1729692212788,8.37531908,2579.1,2578.7,41.77009]
[1729692212789,0.38802,2578.8,2578.7,40.8]
[1729692213091,3.2078,2578.8,2578.7,0.38804]
[1729692213281,0.38802,2578.9,2578.5,0.97018]
[1729692213478,0.5895,2578.8,2578.6,40.8]
[1729692213684,0.5895,2578.8,2578.7,0.38804]
[1729692213886,0.97752,2578.8,2578.7,0.38804]
[1729692214079,0.5895,2578.8,2578.7,0.38804]
[1729692214486,0.97752,2578.8,2578.7,0.38804]
[1729692214887,3.7973,2578.8,2578.6,40.8]
[1729692215083,0.92244,2578.7,2578.6,41.18805]
[1729692215289,0.5344,2578.7,2578.6,41.18805]
[1729692216692,0.5344,2578.7,2578.3,0.5238]
[1729692216987,4.99193522,2578.7,2578.6,0.38805]
[1729692217289,5.37997522,2578.7,2578.6,0.38805]
[1729692217989,4.99193522,2578.7,2578.6,0.38805]
[1729692218592,5.37997522,2578.7,2578.6,0.38805]
[1729692218797,4.99193522,2578.7,2578.6,0.38805]
[1729692219192,0.5895,2578.8,2578.7,0.38804]
[1729692219394,0.529,2579.2,2579.1,0.38798]
[1729692219590,3.2078,2579.3,2578.9,0.97003]
[1729692219895,3.2078,2579.3,2579.2,0.38796]
[1729692220685,3.2078,2579.3,2579.2,0.92896]
[1729692220998,3.2078,2579.3,2579.2,4.80576]
[1729692221192,4.32,2579.6,2579.5,0.38792]
[1729692221498,8.37331324,2579.6,2579.5,0.38792]
[1729692221889,5.16551324,2579.6,2579.5,0.38792]
[1729692222300,3.2078,2579.9,2579.7,0.38788]
[1729692222606,3.2078,2579.9,2579.7,0.38789]
[1729692222607,4.40140658,2579.8,2579.7,0.38789]
[1729692223592,4.3168,2579.9,2579.8,0.38787]
[1729692223593,3.2078,2579.9,2579.8,0.38787]
[1729692223793,3.1879,2579.9,2579.8,4.26387]
[1729692223990,3.1879,2579.9,2579.8,4.82007]
[1729692224194,3.1879,2579.9,2579.7,0.5964]
[1729692224497,3.1879,2579.9,2579.8,0.38787]
[1729692224700,3.57576,2579.9,2579.8,0.38787]
[1729692224907,7.23759744,2579.9,2579.8,41.18787]
[1729692225198,8.15505744,2579.9,2579.8,41.18787]
[1729692225791,7.76719744,2579.9,2579.8,0.38787]
[1729692225991,8.15505744,2579.9,2579.8,0.38787]
[1729692226195,7.76719744,2579.9,2579.7,40.8]
[1729692226392,8.15505744,2579.9,2579.8,0.38787]
[1729692226596,7.76719744,2579.9,2579.6,0.5499]
[1729692226798,0.38789,2579.8,2579.6,0.5499]
[1729692227000,0.99069,2579.8,2579.6,0.93779]
[1729692227292,0.6028,2579.8,2579.7,0.38789]
[1729692227493,3.6328,2579.8,2579.6,0.9378]
[1729692227703,0.38789,2579.7,2579.6,0.9378]
[1729692227902,3.6328,2579.8,2579.6,0.5499]
[1729692228391,0.38789,2579.7,2579.6,0.9378]
[1729692228592,4.02068,2579.8,2579.7,0.38789]
[1729692228823,0.6028,2579.8,2579.7,0.38789]
[1729692229521,3.1879,2579.9,2579.6,0.5499]
[1729692229715,3.1879,2579.9,2579.8,0.38787]
[1729692230014,7.63838017,2579.9,2579.8,0.38787]
[1729692230521,3.1879,2579.9,2579.8,0.38787]
[1729692230926,3.1879,2579.9,2579.8,4.26387]
[1729692231229,1.1199,2580.2,2580.1,0.38783]
[1729692231427,0.5713,2580.2,2580.1,0.38783]
[1729692231623,0.5486,2580.5,2580.4,0.38778]
[1729692231933,0.93874,2580.7,2580.6,0.38775]
[1729692232323,5.3047039,2580.7,2580.6,0.38775]
[1729692233026,4.9169639,2580.7,2580.6,0.38775]
[1729692233332,5.3047039,2580.7,2580.6,0.38775]
[1729692233726,5.3047039,2580.7,2580.4,0.5481]
[1729692233727,4.9169639,2580.7,2580.4,0.5481]
[1729692234127,5.3047139,2580.7,2580.6,0.38775]
[1729692234826,5.3047039,2580.7,2580.6,0.38775]
[1729692235444,4.9169639,2580.7,2580.4,0.5481]
[1729692235731,5.3047039,2580.7,2580.6,0.38775]
[1729692236023,4.9169639,2580.7,2580.6,0.38775]
[1729692236526,5.3047039,2580.7,2580.6,0.38775]
[1729692236716,4.9169639,2580.7,2580.6,0.38775]
[1729692237617,5.3047039,2580.7,2580.6,0.38775]
[1729692237812,4.9169639,2580.7,2580.6,0.38775]
[1729692239197,3.2078,2580.8,2580.7,0.38774]
[1729692239421,3.2078,2581.1,2581.0,0.38769]
[1729692239596,3.2078,2581.1,2581.0,0.96669]
[1729692240002,3.2078,2581.1,2581.0,0.579]
[1729692240003,3.59548,2581.1,2581.0,0.579]
[1729692240310,11.08141,2581.1,2580.5,3.2078]
[1729692240511,11.08141,2581.1,2580.3,0.9695]
[1729692240512,0.38775,2580.7,2580.6,0.38775]
[1729692240808,0.38776,2580.6,2580.5,0.38777]
[1729692241012,0.99306,2580.6,2580.5,0.38777]
[1729692241200,1.1885,2580.6,2580.5,0.38777]
[1729692241604,1.57625,2580.6,2580.5,0.38777]
[1729692241803,1.1885,2580.6,2580.5,0.38777]
[1729692243606,0.38778,2580.4,2580.3,0.96679]
[1729692243818,0.38778,2580.5,2580.4,0.38777]
[1729692244005,1.1885,2580.6,2580.5,0.38777]
[1729692244207,0.5832,2580.6,2580.5,0.38777]
[1729692244609,0.5832,2580.6,2580.4,0.38778]
[1729692244610,0.38778,2580.5,2580.4,0.38778]
[1729692244909,0.97097,2580.6,2580.5,0.38777]
[1729692245108,0.5832,2580.6,2580.5,0.38777]
[1729692245808,3.2078,2580.8,2580.7,0.38774]
[1729692246114,1.2441,2581.3,2580.9,0.96926]
[1729692246305,1.63175,2581.3,2581.2,0.38766]
[1729692246504,1.2441,2581.3,2581.2,0.38766]
[1729692246905,1.63175,2581.3,2581.2,0.38766]
[1729692247104,1.2441,2581.3,2581.2,0.38766]
[1729692247307,1.63175,2581.3,2581.2,0.38766]
[1729692247712,1.63175,2581.3,2581.0,1.1597]
[1729692248008,1.63176,2581.3,2580.8,0.6107]
[1729692248205,1.63176,2581.3,2581.0,0.5951]
[1729692248206,1.2441,2581.3,2581.0,0.5951]
[1729692248511,1.2441,2581.3,2581.0,0.38769]
[1729692248512,0.38769,2581.1,2581.0,0.38769]
[1729692248705,0.3877,2581.0,2580.9,0.3877]
[1729692248910,10.60873706,2581.1,2580.6,0.5951]
[1729692249112,0.38773,2580.8,2580.7,0.38773]
[1729692249414,3.03,2580.8,2580.5,0.38776]
[1729692249714,3.03,2580.6,2580.3,0.5951]
[1729692250017,1.00637,2580.5,2580.4,0.38777]
[1729692250316,0.38778,2580.4,2580.3,0.98288]
[1729692250608,0.38782,2580.2,2580.1,0.38781]
[1729692250800,6.2378,2580.2,2579.6,0.96974]
[1729692251000,0.38785,2580.0,2579.9,0.38785]
[1729692251200,0.606,2580.1,2579.8,0.38786]
[1729692251407,0.6255,2580.0,2579.7,40.8]
[1729692251708,0.6255,2580.0,2579.5,1.1952]
[1729692251709,0.38789,2579.7,2579.6,0.3879]
[1729692251903,0.38788,2579.8,2579.7,0.38788]
[1729692252310,4.43582255,2579.8,2579.7,0.38788]
[1729692252508,0.38789,2579.7,2579.6,40.8]
[1729692252906,4.43583255,2579.8,2579.7,0.38789]
[1729692253309,0.38789,2579.7,2579.6,41.18789]
[1729692253504,4.04794255,2579.8,2579.0,5.15858]
[1729692253706,1.59513,2580.0,2579.1,0.6206]
[1729692253707,3.03,2579.5,2579.1,0.6206]
[1729692253911,3.03,2579.5,2578.4,1.94042]
[1729692253912,3.03,2579.2,2578.5,3.2078]
[1729692254104,3.41803,2578.8,2578.7,0.38804]
[1729692254303,0.38801,2578.9,2578.7,0.38803]
[1729692254506,0.38802,2578.9,2578.7,0.38803]
[1729692254711,4.08687136,2578.9,2578.7,0.38803]
[1729692255315,4.47488136,2578.9,2578.7,0.38803]
[1729692255511,0.38804,2578.7,2578.6,40.8]
[1729692255717,3.2078,2578.7,2578.6,40.8]
[1729692255911,3.59584,2578.7,2578.6,40.8]
[1729692256119,0.38808,2578.5,2577.8,7.77744]
[1729692256317,0.38808,2578.5,2578.3,0.38809]
[1729692256318,3.03,2578.5,2578.3,0.38809]
[1729692256507,7.63064951,2578.4,2578.0,40.8]
[1729692256714,7.24255951,2578.4,2578.2,0.3881]
[1729692256916,7.63064951,2578.4,2578.2,0.38811]
[1729692257211,3.03,2578.3,2577.6,6.76774697]
[1729692257417,3.41815,2578.0,2577.8,0.38817]
[1729692257612,3.41815,2578.0,2577.4,0.6256]
[1729692258114,3.41815,2578.0,2577.7,0.38818]
[1729692258319,3.2078,2578.1,2577.4,0.6256]
[1729692258513,3.2078,2578.1,2577.2,4.3507]
[1729692258713,4.48370906,2578.0,2577.2,4.3507]
[1729692258908,4.48370906,2578.0,2577.8,0.38817]
[1729692259318,4.48370906,2578.0,2577.9,0.38816]
[1729692260314,4.48370906,2578.0,2577.9,41.18816]
[1729692260517,3.2078,2578.1,2578.0,0.38814]
[1729692264317,3.2078,2578.4,2578.3,0.3881]
[1729692264820,3.2078,2578.4,2578.3,4.2665]
[1729692265018,3.2078,2578.8,2578.7,0.38804]
[1729692265626,3.2078,2578.8,2578.7,4.26564]
[1729692266331,0.99996,2579.2,2578.7,4.26564]
[1729692266332,0.612,2579.2,2578.7,4.26564]
[1729692266519,0.612,2579.2,2578.4,2.20331]
[1729692266721,0.612,2579.2,2579.1,0.38798]
[1729692266915,0.612,2579.2,2579.1,41.18798]
[1729692267821,0.612,2579.2,2579.1,40.8]
[1729692268026,0.612,2579.2,2579.1,41.18798]
[1729692268321,0.612,2579.2,2578.7,0.586]
[1729692268516,3.73,2579.0,2578.4,1.2331]
[1729692268714,3.2078,2578.8,2578.5,40.8]
[1729692268917,0.38805,2578.7,2578.5,41.18806]
[1729692269117,4.11803,2578.8,2578.6,0.38805]
[1729692269319,4.11803,2578.8,2578.3,0.5649]
[1729692269320,4.76168572,2578.6,2578.3,0.5649]
[1729692269519,7.58143572,2578.6,2578.3,0.5649]
[1729692269724,3.2078,2578.6,2578.5,0.38807]
[1729692269927,4.37363572,2578.5,2578.4,0.38808]
[1729692270116,3.59587,2578.6,2578.4,0.38808]
[1729692270117,4.76170572,2578.6,2578.4,0.38808]
[1729692270312,7.5504,2578.8,2578.3,0.5649]
[1729692270516,4.43782159,2578.5,2578.4,0.38807]
[1729692271022,7.5504,2578.8,2578.4,0.38807]
[1729692271023,3.2078,2579.1,2578.4,3.8784]
[1729692271221,3.59579,2579.1,2578.9,0.388]
[1729692271420,3.59579,2579.1,2579.0,0.38799]
[1729692271421,7.66200643,2579.1,2579.0,0.38799]
[1729692271624,3.2078,2579.1,2579.0,0.38799]
[1729692274120,3.2078,2579.1,2579.0,4.26559]
[1729692276925,0.6126,2579.5,2579.4,0.38793]
[1729692277126,1.00052,2579.5,2579.4,0.38793]
[1729692277325,1.00052,2579.5,2579.1,0.6072]
[1729692277326,0.6126,2579.5,2579.1,0.6072]
[1729692277517,0.38793,2579.4,2579.2,0.38796]
[1729692277824,7.5504,2579.5,2578.7,4.17788]
[1729692277825,0.38797,2579.2,2578.7,4.17788]
[1729692278025,0.38797,2579.2,2578.5,0.97016]
[1729692278026,0.388,2579.0,2578.9,0.38801]
[1729692278222,0.38801,2578.9,2578.5,1.54426]
[1729692278525,3.59581,2578.9,2578.8,0.38802]
[1729692279026,3.2078,2578.9,2578.8,0.38802]
[1729692280923,0.99719,2579.1,2578.5,1.54426]
[1729692281222,0.99719,2579.1,2579.0,0.38799]
[1729692282130,0.38803,2578.8,2578.7,0.38803]
[1729692282328,3.2078,2578.9,2578.8,0.38802]
[1729692282724,3.59581,2578.9,2578.8,0.38802]
[1729692283228,3.2078,2578.9,2578.8,0.38802]
[1729692284129,3.2078,2578.9,2578.5,0.5741]
[1729692284130,0.38803,2578.8,2578.7,0.38803]
[1729692284628,7.60444153,2578.9,2578.5,0.5741]
[1729692284831,7.99246153,2578.9,2578.8,0.38802]
[1729692285033,11.33444153,2578.9,2578.3,41.77025]
[1729692285332,0.38805,2578.7,2578.6,0.38804]
[1729692285635,0.38805,2578.7,2578.3,41.77025]
[1729692285636,0.38808,2578.5,2578.4,0.38807]
[1729692285837,3.59588,2578.5,2578.4,0.38807]
[1729692286136,3.59588,2578.5,2578.3,40.8]
[1729692286137,0.38808,2578.4,2578.3,41.1881]
[1729692286338,1.01478,2578.4,2578.3,41.1881]
[1729692286540,1.01478,2578.4,2578.3,40.8]
[1729692286835,1.01478,2578.4,2578.3,41.1881]
[1729692287227,1.01478,2578.4,2578.3,40.8]
[1729692287434,1.01478,2578.4,2578.3,41.1881]
[1729692287833,0.6267,2578.4,2578.3,41.1881]
[1729692289233,1.01478,2578.4,2578.3,41.1881]
[1729692289941,1.01478,2578.4,2578.3,40.8]
[1729692290129,1.01478,2578.4,2578.3,41.1881]
[1729692290428,1.01478,2578.4,2578.3,40.8]
[1729692290633,1.01478,2578.4,2578.3,41.1881]
[1729692291236,1.01478,2578.4,2578.3,40.8]
[1729692291438,1.01478,2578.4,2578.3,41.1881]
[1729692292333,1.01478,2578.4,2578.3,40.8]
[1729692292731,1.01478,2578.4,2578.3,41.1881]
[1729692292937,1.01478,2578.4,2578.3,40.8]
[1729692293139,1.01478,2578.4,2578.3,41.1881]
[1729692293443,0.6267,2578.4,2578.3,41.1881]
[1729692294239,1.01478,2578.4,2578.3,40.8]
[1729692294442,1.01478,2578.4,2578.3,41.1881]
[1729692294937,1.01478,2578.4,2578.3,0.3881]
[1729692295134,0.3881,2578.3,2578.2,0.3881]
[1729692295338,0.6267,2578.4,2578.3,0.3881]
[1729692295339,1.01479,2578.4,2578.3,0.3881]
[1729692295738,0.6267,2578.4,2578.1,40.8]
[1729692295937,0.38811,2578.3,2578.2,0.38811]
[1729692296132,0.38811,2578.2,2578.1,40.8]
[1729692296342,3.2078,2578.2,2577.8,0.5746]
[1729692296644,3.59592,2578.2,2578.1,0.38813]
[1729692296943,0.38812,2578.2,2578.1,0.38813]
[1729692297140,3.59592,2578.2,2578.1,0.38813]
[1729692297346,0.38814,2578.0,2577.9,41.18815]
[1729692297543,0.38814,2578.0,2577.9,40.8]
[1729692298139,3.03,2578.1,2578.0,0.38814]
[1729692298337,3.59591,2578.2,2578.1,0.38813]
[1729692298735,3.2078,2578.2,2578.1,0.38813]
[1729692299044,3.59591,2578.2,2578.1,0.38813]
[1729692299544,0.38814,2578.1,2578.0,0.38814]
[1729692300039,0.38814,2578.0,2577.9,40.8]
[1729692300251,7.43987299,2578.2,2577.9,40.8]
[1729692300439,0.38814,2578.1,2578.0,0.38814]
[1729692300639,0.38814,2578.0,2577.9,41.18815]
[1729692300846,0.38814,2578.0,2577.9,40.8]
[1729692301440,4.35600373,2578.1,2578.0,0.38814]
[1729692302335,3.2078,2578.2,2578.1,0.38813]
[1729692303136,3.03,2578.7,2578.1,0.38813]
[1729692303137,3.2078,2578.7,2578.2,0.97029]
[1729692303334,3.2078,2578.7,2578.6,0.38805]
[1729692303539,4.40621877,2578.6,2578.1,3.03]
[1729692303731,4.40621877,2578.6,2578.0,1.47984]
[1729692303936,6.2378,2578.7,2578.0,0.5095]
[1729692304139,6.2378,2578.7,2578.5,0.38806]
[1729692304140,0.38806,2578.6,2578.5,0.38806]
[1729692304333,4.79427877,2578.6,2578.5,0.38806]
[1729692304539,4.40621877,2578.6,2578.5,0.38806]
[1729692304737,3.59584,2578.7,2578.6,0.38805]
[1729692304939,3.2078,2578.7,2578.6,0.38805]
[1729692305144,3.2078,2579.0,2578.4,1.52861]
[1729692305338,3.2078,2579.0,2578.8,0.38801]
[1729692305537,3.5958,2579.0,2578.6,0.97014]
[1729692305743,4.20946342,2578.9,2578.8,0.38801]
[1729692306145,3.2078,2579.0,2578.8,0.38801]
[1729692306146,3.2078,2579.0,2578.8,3.8776]
[1729692306341,3.2078,2579.0,2578.6,0.97014]
[1729692306342,3.2078,2579.0,2578.9,0.38801]
[1729692306744,3.2078,2579.0,2578.9,41.18801]
[1729692307141,1.0882,2579.5,2579.3,0.38795]
[1729692307142,6.2378,2579.4,2579.3,0.38795]
[1729692307353,3.2078,2579.4,2579.3,0.38795]
[1729692307646,3.2078,2579.4,2579.2,0.38795]
[1729692307647,0.38795,2579.3,2579.2,0.38795]
[1729692307946,0.38795,2579.3,2579.1,0.91887]
[1729692308152,0.38795,2579.3,2579.0,0.5334]
[1729692308153,10.33036568,2579.4,2579.3,0.38795]
[1729692308647,10.71830568,2579.4,2579.3,0.38795]
[1729692308952,10.33036568,2579.4,2579.3,0.38795]
[1729692309147,3.2078,2579.7,2579.6,0.38789]
[1729692309451,3.5957,2579.7,2579.5,0.38792]
[1729692309751,3.4179,2579.6,2579.1,3.2078]
[1729692309951,0.38792,2579.5,2579.4,0.38793]
[1729692310152,0.38792,2579.5,2579.3,0.38794]
[1729692310451,7.4209346,2579.6,2579.1,3.2078]
[1729692310452,7.8088446,2579.6,2579.4,0.38792]
[1729692310645,7.8088446,2579.6,2579.1,3.2078]
[1729692310646,7.4209346,2579.6,2579.1,3.2078]
[1729692310853,3.2078,2579.7,2579.6,0.3879]
[1729692311242,3.59565,2580.0,2579.8,0.38787]
[1729692311447,0.38786,2579.9,2579.7,0.38788]
[1729692311644,3.2078,2580.0,2579.4,3.745]
[1729692311959,3.2078,2580.0,2579.9,0.38786]
[1729692312559,3.2078,2580.0,2579.9,41.18786]
[1729692315454,0.38788,2579.8,2579.6,0.3879]
[1729692315646,10.46539913,2580.0,2579.4,0.5372]
[1729692315850,0.38788,2579.8,2579.6,0.3879]
[1729692316247,4.22759913,2579.7,2579.5,0.38791]
[1729692316452,3.03,2579.6,2579.3,40.8]